[Event "January 9 Early 2024"]
[Site "https://www.chess.com"]
[Date "2024.01.11"]
[Round "8"]
[White "Lima, Artur Tin Lun Dai"]
[Black "Terziev, Dimo"]
[Result "1-0"]
[Board "38"]
[TimeControl "180+1"]
[WhiteFideId "22773150"]
[BlackFideId "2925397"]
[WhiteElo "2366"]
[BlackElo "2163"]
[WhiteTeam "BRA"]
[BlackTeam "BUL"]
[WhiteClock "0:01:56"]
[BlackClock "0:00:01"]

1. e4 {[%clk 0:03:00]}  d6 {[%clk 0:02:47]} 2. d4 {[%clk 0:02:59]}  Nf6 {[%clk 0:02:40]} 3. Nc3 {[%clk 0:02:59]}  g6 {[%clk 0:02:40]} 4. Nf3 {[%clk 0:03:00]}  Bg7 {[%clk 0:02:40]} 5. Be2 {[%clk 0:03:00]}  O-O {[%clk 0:02:41]} 6. O-O {[%clk 0:03:01]}  c6 {[%clk 0:02:41]} 7. a4 {[%clk 0:03:01]}  Qc7 {[%clk 0:02:41]} 8. Re1 {[%clk 0:03:01]}  e5 {[%clk 0:02:40]} 9. h3 {[%clk 0:03:02]}  Nbd7 {[%clk 0:02:39]} 10. b3 {[%clk 0:03:01]}  Re8 {[%clk 0:02:39]} 11. dxe5 {[%clk 0:02:58]}  dxe5 {[%clk 0:02:38]} 12. Ba3 {[%clk 0:02:58]}  Bf8 {[%clk 0:02:34]} 13. Bb2 {[%clk 0:02:56]}  Bc5 {[%clk 0:02:29]} 14. Bc4 {[%clk 0:02:53]}  Nf8 {[%clk 0:02:19]} 15. Qe2 {[%clk 0:02:52]}  Be6 {[%clk 0:02:16]} 16. Bd3 {[%clk 0:02:52]}  Rad8 {[%clk 0:02:11]} 17. a5 {[%clk 0:02:52]}  a6 {[%clk 0:02:10]} 18. Ra4 {[%clk 0:02:50]}  Bc8 {[%clk 0:02:09]} 19. Rd1 {[%clk 0:02:50]}  Ne6 {[%clk 0:02:08]} 20. Qf1 {[%clk 0:02:46]}  Nf4 {[%clk 0:01:57]} 21. Ne2 {[%clk 0:02:44]}  N6h5 {[%clk 0:01:38]} 22. Nxf4 {[%clk 0:02:37]}  Nxf4 {[%clk 0:01:38]} 23. Bc4 {[%clk 0:02:36]}  Rxd1 {[%clk 0:01:14]} 24. Qxd1 {[%clk 0:02:37]}  Bd6 {[%clk 0:01:11]} 25. Ra1 {[%clk 0:02:34]}  Be6 {[%clk 0:01:09]} 26. Bxe6 {[%clk 0:02:32]}  Nxe6 {[%clk 0:01:10]} 27. Qe2 {[%clk 0:02:29]}  f6 {[%clk 0:01:01]} 28. Qc4 {[%clk 0:02:29]}  Kf7 {[%clk 0:00:59]} 29. Bc3 {[%clk 0:02:29]}  Rd8 {[%clk 0:00:52]} 30. Re1 {[%clk 0:02:29]}  Be7 {[%clk 0:00:44]} 31. g3 {[%clk 0:02:23]}  Qd6 {[%clk 0:00:42]} 32. Kg2 {[%clk 0:02:21]}  Qc5 {[%clk 0:00:42]} 33. Qxc5 {[%clk 0:02:15]}  Bxc5 {[%clk 0:00:41]} 34. h4 {[%clk 0:02:12]}  Ke7 {[%clk 0:00:34]} 35. h5 {[%clk 0:02:08]}  g5 {[%clk 0:00:32]} 36. Nh2 {[%clk 0:02:07]}  Ng7 {[%clk 0:00:19]} 37. Ng4 {[%clk 0:01:59]}  Ne6 {[%clk 0:00:15]} 38. Rh1 {[%clk 0:01:59]}  Bd4 {[%clk 0:00:14]} 39. Bb4+ {[%clk 0:01:57]}  Bc5 {[%clk 0:00:13]} 40. Bc3 {[%clk 0:01:58]}  Bd4 {[%clk 0:00:06]} 41. Be1 {[%clk 0:01:57]}  Bc5 {[%clk 0:00:03]} 42. Nh6 {[%clk 0:01:57]}  Kd7 {[%clk 0:00:02]} 43. Nf5 {[%clk 0:01:57]}  Ke8 {[%clk 0:00:01]} 44. Bc3 {[%clk 0:01:56]} 1-0

[Event "January 9 Early 2024"]
[Site "https://www.chess.com"]
[Date "2024.01.11"]
[Round "8"]
[White "Smirnov, Timofey"]
[Black "Tqebuchava, Zurab"]
[Result "0-1"]
[Board "39"]
[TimeControl "180+1"]
[WhiteFideId "24176427"]
[BlackFideId "13601113"]
[WhiteElo "1992"]
[BlackElo "2133"]
[WhiteTeam "RUS"]
[BlackTeam "GEO"]
[WhiteClock "0:00:59"]
[BlackClock "0:00:33"]

1. e4 {[%clk 0:03:00]}  e5 {[%clk 0:02:55]} 2. Nf3 {[%clk 0:03:00]}  Nc6 {[%clk 0:02:55]} 3. Bb5 {[%clk 0:02:59]}  d6 {[%clk 0:02:50]} 4. d4 {[%clk 0:02:57]}  exd4 {[%clk 0:02:50]} 5. Nxd4 {[%clk 0:02:56]}  Bd7 {[%clk 0:02:50]} 6. O-O {[%clk 0:02:54]}  Nf6 {[%clk 0:02:49]} 7. Nc3 {[%clk 0:02:54]}  Be7 {[%clk 0:02:49]} 8. Re1 {[%clk 0:02:51]}  O-O {[%clk 0:02:46]} 9. Nxc6 {[%clk 0:02:51]}  Bxc6 {[%clk 0:02:43]} 10. Bxc6 {[%clk 0:02:51]}  bxc6 {[%clk 0:02:44]} 11. e5 {[%clk 0:02:45]}  dxe5 {[%clk 0:02:40]} 12. Qxd8 {[%clk 0:02:44]}  Raxd8 {[%clk 0:02:36]} 13. Rxe5 {[%clk 0:02:44]}  Bc5 {[%clk 0:02:12]} 14. Bg5 {[%clk 0:02:17]}  Bxf2+ {[%clk 0:02:06]} 15. Kf1 {[%clk 0:02:09]}  Bd4 {[%clk 0:02:04]} 16. Bxf6 {[%clk 0:02:08]}  gxf6 {[%clk 0:01:59]} 17. Ra5 {[%clk 0:01:57]}  Bxc3 {[%clk 0:01:57]} 18. bxc3 {[%clk 0:01:58]}  Rd2 {[%clk 0:01:57]} 19. Rc1 {[%clk 0:01:53]}  Rfd8 {[%clk 0:01:38]} 20. Rf5 {[%clk 0:01:49]}  Kg7 {[%clk 0:01:34]} 21. Rf3 {[%clk 0:01:40]}  R8d5 {[%clk 0:01:25]} 22. c4 {[%clk 0:01:37]}  Re5 {[%clk 0:01:20]} 23. Rd3 {[%clk 0:01:30]}  Ree2 {[%clk 0:01:04]} 24. Rxd2 {[%clk 0:01:06]}  Rxd2 {[%clk 0:01:03]} 25. h3 {[%clk 0:01:03]}  Kg6 {[%clk 0:00:49]} 26. g3 {[%clk 0:01:03]}  Kg5 {[%clk 0:00:46]} 27. Ke1 {[%clk 0:01:03]}  Rh2 {[%clk 0:00:37]} 28. h4+ {[%clk 0:01:03]}  Kg4 {[%clk 0:00:35]} 29. Rd1 {[%clk 0:01:00]}  Rh1+ {[%clk 0:00:34]} 30. Ke2 {[%clk 0:00:58]}  Rxd1 {[%clk 0:00:34]} 31. Kxd1 {[%clk 0:00:59]}  Kxg3 {[%clk 0:00:33]} 0-1

[Event "January 9 Early 2024"]
[Site "https://www.chess.com"]
[Date "2024.01.11"]
[Round "8"]
[White "Jakubowski, Krzysztof"]
[Black "Batsiashvili, Nino"]
[Result "1-0"]
[Board "45"]
[TimeControl "180+1"]
[WhiteFideId "1112848"]
[BlackFideId "13602993"]
[WhiteElo "2677"]
[BlackElo "2520"]
[WhiteTeam "POL"]
[BlackTeam "GEO"]
[WhiteClock "0:01:13"]
[BlackClock "0:00:10"]

1. e4 {[%clk 0:03:00]}  e5 {[%clk 0:02:57]} 2. Nf3 {[%clk 0:03:00]}  Nc6 {[%clk 0:02:57]} 3. Bc4 {[%clk 0:02:59]}  Nf6 {[%clk 0:02:57]} 4. Ng5 {[%clk 0:02:59]}  d5 {[%clk 0:02:57]} 5. exd5 {[%clk 0:02:59]}  Na5 {[%clk 0:02:57]} 6. Bb5+ {[%clk 0:02:59]}  c6 {[%clk 0:02:58]} 7. dxc6 {[%clk 0:02:59]}  bxc6 {[%clk 0:02:59]} 8. Bd3 {[%clk 0:02:59]}  Nd5 {[%clk 0:02:56]} 9. h4 {[%clk 0:02:56]}  Nf4 {[%clk 0:02:38]} 10. Bf1 {[%clk 0:02:54]}  Bc5 {[%clk 0:02:25]} 11. c3 {[%clk 0:02:38]}  Nb7 {[%clk 0:02:23]} 12. d4 {[%clk 0:02:36]}  Bb6 {[%clk 0:02:11]} 13. Bxf4 {[%clk 0:02:31]}  exf4 {[%clk 0:02:10]} 14. Qe2+ {[%clk 0:02:30]}  Kf8 {[%clk 0:02:07]} 15. Nd2 {[%clk 0:02:27]}  h6 {[%clk 0:02:05]} 16. Nh3 {[%clk 0:02:26]}  Qxh4 {[%clk 0:01:59]} 17. O-O-O {[%clk 0:02:23]}  Be6 {[%clk 0:01:57]} 18. g3 {[%clk 0:02:15]}  fxg3 {[%clk 0:01:53]} 19. Bg2 {[%clk 0:02:12]}  Rc8 {[%clk 0:01:31]} 20. fxg3 {[%clk 0:02:07]}  Qxg3 {[%clk 0:01:31]} 21. Rdf1 {[%clk 0:02:04]}  Nd8 {[%clk 0:01:22]} 22. Nf4 {[%clk 0:01:59]}  Qg4 {[%clk 0:00:45]} 23. Qf2 {[%clk 0:01:41]}  Qf5 {[%clk 0:00:13]} 24. Bh3 {[%clk 0:01:38]}  Qf6 {[%clk 0:00:14]} 25. Bxe6 {[%clk 0:01:34]}  Nxe6 {[%clk 0:00:14]} 26. Qe3 {[%clk 0:01:24]}  Nxf4 {[%clk 0:00:13]} 27. Rxf4 {[%clk 0:01:25]}  Qe7 {[%clk 0:00:13]} 28. Qf2 {[%clk 0:01:23]}  Rc7 {[%clk 0:00:13]} 29. Re1 {[%clk 0:01:21]}  Qd7 {[%clk 0:00:13]} 30. Nc4 {[%clk 0:01:17]}  Kg8 {[%clk 0:00:13]} 31. Ne5 {[%clk 0:01:17]}  Qe6 {[%clk 0:00:11]} 32. Nxf7 {[%clk 0:01:14]}  Qxe1+ {[%clk 0:00:11]} 33. Qxe1 {[%clk 0:01:13]}  Rxf7 {[%clk 0:00:10]} 34. Qe8+ {[%clk 0:01:13]}  Kh7 {[%clk 0:00:10]} 35. Qxf7 {[%clk 0:01:13]} 1-0

[Event "January 9 Early 2024"]
[Site "https://www.chess.com"]
[Date "2024.01.11"]
[Round "8"]
[White "Rietze, Clemens, Dr."]
[Black "Tymrakiewicz, Rafal"]
[Result "1-0"]
[Board "49"]
[TimeControl "180+1"]
[WhiteFideId "24620351"]
[BlackFideId "1108832"]
[WhiteElo "2517"]
[BlackElo "2393"]
[WhiteTeam "GER"]
[BlackTeam "POL"]
[WhiteClock "0:00:47"]
[BlackClock "0:00:01"]

1. d4 {[%clk 0:03:00]}  d5 {[%clk 0:02:57]} 2. c4 {[%clk 0:03:00]}  Bf5 {[%clk 0:02:57]} 3. cxd5 {[%clk 0:02:43]}  Nf6 {[%clk 0:02:57]} 4. Nc3 {[%clk 0:02:33]}  Nxd5 {[%clk 0:02:56]} 5. Qb3 {[%clk 0:02:33]}  Nxc3 {[%clk 0:02:54]} 6. bxc3 {[%clk 0:02:31]}  Nd7 {[%clk 0:02:54]} 7. Qxb7 {[%clk 0:02:22]}  e6 {[%clk 0:02:50]} 8. Nf3 {[%clk 0:02:20]}  Bd6 {[%clk 0:02:50]} 9. g3 {[%clk 0:02:18]}  Rb8 {[%clk 0:02:28]} 10. Qc6 {[%clk 0:02:09]}  Rb6 {[%clk 0:02:27]} 11. Qa4 {[%clk 0:02:08]}  h5 {[%clk 0:02:25]} 12. Bg2 {[%clk 0:02:07]}  h4 {[%clk 0:02:17]} 13. Nxh4 {[%clk 0:02:06]}  Rxh4 {[%clk 0:02:17]} 14. gxh4 {[%clk 0:02:07]}  Qxh4 {[%clk 0:01:53]} 15. Qxa7 {[%clk 0:02:00]}  e5 {[%clk 0:01:13]} 16. a4 {[%clk 0:01:28]}  exd4 {[%clk 0:01:05]} 17. a5 {[%clk 0:01:28]}  Rb3 {[%clk 0:00:40]} 18. Qxd4 {[%clk 0:01:23]}  Qxd4 {[%clk 0:00:36]} 19. cxd4 {[%clk 0:01:23]}  Nb8 {[%clk 0:00:20]} 20. a6 {[%clk 0:00:56]}  Bb4+ {[%clk 0:00:12]} 21. Kd1 {[%clk 0:00:52]}  Rc3 {[%clk 0:00:01]} 22. e4 {[%clk 0:00:47]} 1-0

[Event "January 9 Early 2024"]
[Site "https://www.chess.com"]
[Date "2024.01.11"]
[Round "8"]
[White "Eggleston, Thomas A"]
[Black "Gevorgyan, Maria"]
[Result "0-1"]
[Board "50"]
[TimeControl "180+1"]
[WhiteFideId "412139"]
[BlackFideId "13300270"]
[WhiteElo "2255"]
[BlackElo "2422"]
[WhiteTeam "ENG"]
[BlackTeam "ARM"]
[WhiteClock "0:00:24"]
[BlackClock "0:00:46"]

1. e4 {[%clk 0:03:00]}  c5 {[%clk 0:02:59]} 2. Nf3 {[%clk 0:03:00]}  Nc6 {[%clk 0:02:59]} 3. Bb5 {[%clk 0:03:00]}  g6 {[%clk 0:02:58]} 4. Bxc6 {[%clk 0:02:59]}  dxc6 {[%clk 0:02:59]} 5. Qe2 {[%clk 0:02:59]}  Bg7 {[%clk 0:02:59]} 6. d3 {[%clk 0:02:59]}  Nf6 {[%clk 0:02:58]} 7. h3 {[%clk 0:02:59]}  Nd7 {[%clk 0:02:57]} 8. O-O {[%clk 0:02:57]}  e5 {[%clk 0:02:57]} 9. Nh2 {[%clk 0:02:54]}  Nf8 {[%clk 0:02:48]} 10. Nd2 {[%clk 0:02:52]}  Ne6 {[%clk 0:02:48]} 11. Nb3 {[%clk 0:02:51]}  O-O {[%clk 0:02:47]} 12. Ng4 {[%clk 0:02:46]}  b6 {[%clk 0:02:39]} 13. c3 {[%clk 0:02:42]}  Qc7 {[%clk 0:02:36]} 14. Nh6+ {[%clk 0:02:36]}  Kh8 {[%clk 0:02:34]} 15. g3 {[%clk 0:02:36]}  f5 {[%clk 0:02:28]} 16. exf5 {[%clk 0:02:29]}  gxf5 {[%clk 0:02:28]} 17. Qh5 {[%clk 0:02:28]}  Nd8 {[%clk 0:02:17]} 18. g4 {[%clk 0:02:08]}  fxg4 {[%clk 0:02:14]} 19. hxg4 {[%clk 0:02:04]}  Qd6 {[%clk 0:02:13]} 20. Nf5 {[%clk 0:01:58]}  Bxf5 {[%clk 0:02:12]} 21. gxf5 {[%clk 0:01:58]}  Qxd3 {[%clk 0:02:12]} 22. Bh6 {[%clk 0:01:49]}  Bxh6 {[%clk 0:02:02]} 23. Qxh6 {[%clk 0:01:49]}  Qxf5 {[%clk 0:02:02]} 24. f4 {[%clk 0:01:32]}  Nf7 {[%clk 0:01:55]} 25. Qh4 {[%clk 0:01:11]}  Rg8+ {[%clk 0:01:54]} 26. Kh2 {[%clk 0:01:09]}  Rg4 {[%clk 0:01:50]} 27. Qh3 {[%clk 0:01:04]}  Rag8 {[%clk 0:01:38]} 28. Rf2 {[%clk 0:00:51]}  exf4 {[%clk 0:01:34]} 29. Raf1 {[%clk 0:00:42]}  Qg5 {[%clk 0:00:49]} 30. Nd2 {[%clk 0:00:29]}  Rh4 {[%clk 0:00:47]} 31. Rf3 {[%clk 0:00:24]}  Qg2# {[%clk 0:00:46]} 0-1

[Event "January 9 Early 2024"]
[Site "https://www.chess.com"]
[Date "2024.01.11"]
[Round "8"]
[White "Parfenov, Viktor N."]
[Black "Rees, Ioan"]
[Result "0-1"]
[Board "51"]
[TimeControl "180+1"]
[WhiteFideId "4165969"]
[BlackFideId "1801236"]
[WhiteElo "2501"]
[BlackElo "2412"]
[WhiteTeam "RUS"]
[BlackTeam "WLS"]
[WhiteClock "0:00:09"]
[BlackClock "0:00:53"]

1. d4 {[%clk 0:03:00]}  d5 {[%clk 0:02:59]} 2. c4 {[%clk 0:03:01]}  c6 {[%clk 0:02:59]} 3. Nf3 {[%clk 0:02:59]}  Nf6 {[%clk 0:02:59]} 4. Nc3 {[%clk 0:02:59]}  e6 {[%clk 0:02:59]} 5. Bg5 {[%clk 0:02:59]}  h6 {[%clk 0:02:59]} 6. Bh4 {[%clk 0:02:58]}  dxc4 {[%clk 0:02:57]} 7. e4 {[%clk 0:02:58]}  g5 {[%clk 0:02:57]} 8. Bg3 {[%clk 0:02:50]}  b5 {[%clk 0:02:57]} 9. Be2 {[%clk 0:02:46]}  Bb7 {[%clk 0:02:57]} 10. h4 {[%clk 0:02:04]}  g4 {[%clk 0:02:49]} 11. Ne5 {[%clk 0:02:04]}  Bg7 {[%clk 0:02:42]} 12. Bxg4 {[%clk 0:01:45]}  Nbd7 {[%clk 0:02:23]} 13. Bf3 {[%clk 0:01:21]}  O-O {[%clk 0:02:07]} 14. O-O {[%clk 0:01:17]}  c5 {[%clk 0:01:57]} 15. Nxd7 {[%clk 0:00:52]}  Nxd7 {[%clk 0:01:58]} 16. Nxb5 {[%clk 0:00:50]}  cxd4 {[%clk 0:01:56]} 17. Nxd4 {[%clk 0:00:46]}  Ne5 {[%clk 0:01:45]} 18. Nb5 {[%clk 0:00:45]}  Qe7 {[%clk 0:01:37]} 19. Qd6 {[%clk 0:00:41]}  Qxd6 {[%clk 0:01:30]} 20. Nxd6 {[%clk 0:00:40]}  Nxf3+ {[%clk 0:01:31]} 21. gxf3 {[%clk 0:00:40]}  Ba6 {[%clk 0:01:26]} 22. e5 {[%clk 0:00:37]}  c3 {[%clk 0:01:22]} 23. Rfd1 {[%clk 0:00:22]}  cxb2 {[%clk 0:01:15]} 24. Rab1 {[%clk 0:00:22]}  Be2 {[%clk 0:01:12]} 25. Rd2 {[%clk 0:00:19]}  Bxf3 {[%clk 0:01:11]} 26. Rbxb2 {[%clk 0:00:20]}  f6 {[%clk 0:01:07]} 27. Rb5 {[%clk 0:00:14]}  fxe5 {[%clk 0:01:01]} 28. Bxe5 {[%clk 0:00:14]}  Bd5 {[%clk 0:00:54]} 29. Kh2 {[%clk 0:00:09]}  Bxe5+ {[%clk 0:00:53]} 0-1

[Event "January 9 Early 2024"]
[Site "https://www.chess.com"]
[Date "2024.01.11"]
[Round "8"]
[White "Kantans, Toms"]
[Black "Pichot, Alan"]
[Result "0-1"]
[Board "53"]
[TimeControl "180+1"]
[WhiteFideId "11602945"]
[BlackFideId "110973"]
[WhiteElo "2647"]
[BlackElo "2839"]
[WhiteTeam "LAT"]
[BlackTeam "ESP"]
[WhiteClock "0:00:05"]
[BlackClock "0:01:01"]

1. e4 {[%clk 0:03:00]}  c5 {[%clk 0:02:59]} 2. Nf3 {[%clk 0:02:58]}  e6 {[%clk 0:02:59]} 3. d4 {[%clk 0:02:58]}  cxd4 {[%clk 0:03:00]} 4. Nxd4 {[%clk 0:02:59]}  Nc6 {[%clk 0:03:00]} 5. Nc3 {[%clk 0:02:58]}  Qc7 {[%clk 0:03:00]} 6. Be3 {[%clk 0:02:58]}  a6 {[%clk 0:03:01]} 7. Qf3 {[%clk 0:02:58]}  Ne5 {[%clk 0:02:59]} 8. Qg3 {[%clk 0:02:57]}  h5 {[%clk 0:03:00]} 9. f4 {[%clk 0:02:53]}  h4 {[%clk 0:02:59]} 10. Qh3 {[%clk 0:02:53]}  Nc4 {[%clk 0:03:00]} 11. Bxc4 {[%clk 0:02:53]}  Qxc4 {[%clk 0:03:01]} 12. O-O-O {[%clk 0:02:54]}  b5 {[%clk 0:03:01]} 13. Kb1 {[%clk 0:02:35]}  Bb7 {[%clk 0:03:01]} 14. Rhe1 {[%clk 0:02:33]}  Rc8 {[%clk 0:02:53]} 15. g4 {[%clk 0:02:13]}  Bb4 {[%clk 0:02:31]} 16. Bc1 {[%clk 0:01:51]}  Nf6 {[%clk 0:02:22]} 17. e5 {[%clk 0:00:49]}  Bxc3 {[%clk 0:02:20]} 18. Qxc3 {[%clk 0:00:33]}  Qxc3 {[%clk 0:02:20]} 19. bxc3 {[%clk 0:00:34]}  Ne4 {[%clk 0:02:17]} 20. Ne2 {[%clk 0:00:29]}  Nf2 {[%clk 0:02:06]} 21. Rd4 {[%clk 0:00:25]}  Nxg4 {[%clk 0:02:06]} 22. h3 {[%clk 0:00:18]}  Nf2 {[%clk 0:01:24]} 23. f5 {[%clk 0:00:13]}  Nxh3 {[%clk 0:01:18]} 24. Rf1 {[%clk 0:00:10]}  Bg2 {[%clk 0:01:15]} 25. Rfd1 {[%clk 0:00:10]}  Nf2 {[%clk 0:01:14]} 26. Rg1 {[%clk 0:00:08]}  h3 {[%clk 0:01:13]} 27. Bf4 {[%clk 0:00:07]}  exf5 {[%clk 0:01:03]} 28. Bh2 {[%clk 0:00:06]}  Ng4 {[%clk 0:01:03]} 29. Bg3 {[%clk 0:00:06]}  h2 {[%clk 0:01:02]} 30. Bxh2 {[%clk 0:00:05]}  Rxh2 {[%clk 0:01:03]} 31. Nf4 {[%clk 0:00:05]}  Bc6 {[%clk 0:01:01]} 0-1

[Event "January 9 Early 2024"]
[Site "https://www.chess.com"]
[Date "2024.01.11"]
[Round "8"]
[White "Khegay, Yuliya"]
[Black "Kolmagorov, Alexey"]
[Result "0-1"]
[Board "54"]
[TimeControl "180+1"]
[WhiteFideId "14205394"]
[BlackFideId "34129402"]
[WhiteElo "2210"]
[BlackElo "2381"]
[WhiteTeam "UZB"]
[BlackTeam "RUS"]
[WhiteClock "0:00:02"]
[BlackClock "0:01:13"]

1. d4 {[%clk 0:03:00]}  Nf6 {[%clk 0:02:59]} 2. Nf3 {[%clk 0:03:01]}  d5 {[%clk 0:02:54]} 3. c4 {[%clk 0:03:01]}  e6 {[%clk 0:02:54]} 4. Nc3 {[%clk 0:03:01]}  a6 {[%clk 0:02:54]} 5. cxd5 {[%clk 0:02:57]}  exd5 {[%clk 0:02:54]} 6. Bg5 {[%clk 0:02:57]}  Be6 {[%clk 0:02:54]} 7. e3 {[%clk 0:02:57]}  Nbd7 {[%clk 0:02:55]} 8. Bd3 {[%clk 0:02:53]}  Bd6 {[%clk 0:02:54]} 9. O-O {[%clk 0:02:48]}  c6 {[%clk 0:02:53]} 10. Rb1 {[%clk 0:02:44]}  Qc7 {[%clk 0:02:53]} 11. h3 {[%clk 0:02:28]}  h6 {[%clk 0:02:52]} 12. Bxf6 {[%clk 0:02:24]}  Nxf6 {[%clk 0:02:49]} 13. b4 {[%clk 0:02:19]}  g5 {[%clk 0:02:49]} 14. e4 {[%clk 0:02:12]}  dxe4 {[%clk 0:02:33]} 15. Nxe4 {[%clk 0:02:12]}  Nxe4 {[%clk 0:02:34]} 16. Bxe4 {[%clk 0:02:12]}  f5 {[%clk 0:02:32]} 17. Bc2 {[%clk 0:01:45]}  O-O-O {[%clk 0:02:32]} 18. Re1 {[%clk 0:01:38]}  Bd7 {[%clk 0:02:22]} 19. d5 {[%clk 0:01:33]}  Rhf8 {[%clk 0:02:05]} 20. Nd4 {[%clk 0:01:23]}  g4 {[%clk 0:02:00]} 21. Ne6 {[%clk 0:00:34]}  Bxe6 {[%clk 0:01:58]} 22. Rxe6 {[%clk 0:00:35]}  gxh3 {[%clk 0:01:56]} 23. Qh5 {[%clk 0:00:31]}  Bh2+ {[%clk 0:01:53]} 24. Kh1 {[%clk 0:00:21]}  Rxd5 {[%clk 0:01:50]} 25. Qxh3 {[%clk 0:00:17]}  Bd6 {[%clk 0:01:45]} 26. Rd1 {[%clk 0:00:09]}  Rxd1+ {[%clk 0:01:42]} 27. Bxd1 {[%clk 0:00:10]}  Qd7 {[%clk 0:01:42]} 28. Rxh6 {[%clk 0:00:08]}  Bxb4 {[%clk 0:01:42]} 29. Bc2 {[%clk 0:00:08]}  Bc3 {[%clk 0:01:40]} 30. Rh7 {[%clk 0:00:05]}  Qd2 {[%clk 0:01:36]} 31. Qd3 {[%clk 0:00:05]}  Qc1+ {[%clk 0:01:24]} 32. Kh2 {[%clk 0:00:05]}  Qf4+ {[%clk 0:01:24]} 33. Kh1 {[%clk 0:00:04]}  Bd4 {[%clk 0:01:20]} 34. g3 {[%clk 0:00:02]}  Qxf2 {[%clk 0:01:13]} 35. Rh4 {[%clk 0:00:02]}  Qg1# {[%clk 0:01:13]} 0-1

[Event "January 9 Early 2024"]
[Site "https://www.chess.com"]
[Date "2024.01.11"]
[Round "8"]
[White "Kostiukov, Alexandr"]
[Black "Filgueira, Hernan"]
[Result "0-1"]
[Board "55"]
[TimeControl "180+1"]
[WhiteFideId "14108100"]
[BlackFideId "101770"]
[WhiteElo "2293"]
[BlackElo "2553"]
[WhiteTeam "UKR"]
[BlackTeam "ARG"]
[WhiteClock "0:00:01"]
[BlackClock "0:01:09"]

1. g3 {[%clk 0:02:56]}  d5 {[%clk 0:02:59]} 2. Bg2 {[%clk 0:02:57]}  c6 {[%clk 0:02:59]} 3. d3 {[%clk 0:02:57]}  Nf6 {[%clk 0:02:59]} 4. e4 {[%clk 0:02:58]}  dxe4 {[%clk 0:02:58]} 5. dxe4 {[%clk 0:02:59]}  Qxd1+ {[%clk 0:02:58]} 6. Kxd1 {[%clk 0:02:58]}  e5 {[%clk 0:02:58]} 7. f3 {[%clk 0:02:57]}  Bc5 {[%clk 0:02:55]} 8. Nd2 {[%clk 0:02:55]}  Be6 {[%clk 0:02:54]} 9. Bh3 {[%clk 0:02:55]}  Bxh3 {[%clk 0:02:46]} 10. Nxh3 {[%clk 0:02:56]}  Nbd7 {[%clk 0:02:46]} 11. Nb3 {[%clk 0:02:55]}  Bb6 {[%clk 0:02:39]} 12. a4 {[%clk 0:02:40]}  a6 {[%clk 0:02:31]} 13. Ke2 {[%clk 0:02:34]}  h6 {[%clk 0:02:27]} 14. Be3 {[%clk 0:02:33]}  Bxe3 {[%clk 0:02:21]} 15. Kxe3 {[%clk 0:02:34]}  a5 {[%clk 0:02:20]} 16. Nf2 {[%clk 0:02:33]}  Ke7 {[%clk 0:02:13]} 17. Nd3 {[%clk 0:02:32]}  b6 {[%clk 0:02:11]} 18. Nd2 {[%clk 0:02:31]}  Ne8 {[%clk 0:02:10]} 19. Nc4 {[%clk 0:02:29]}  f6 {[%clk 0:02:08]} 20. f4 {[%clk 0:02:13]}  Nd6 {[%clk 0:02:06]} 21. Nxd6 {[%clk 0:02:05]}  Kxd6 {[%clk 0:02:06]} 22. Rad1 {[%clk 0:01:58]}  Kc7 {[%clk 0:02:06]} 23. b3 {[%clk 0:01:52]}  Rhe8 {[%clk 0:02:04]} 24. f5 {[%clk 0:01:48]}  b5 {[%clk 0:01:49]} 25. h4 {[%clk 0:01:35]}  bxa4 {[%clk 0:01:47]} 26. bxa4 {[%clk 0:01:36]}  Rab8 {[%clk 0:01:47]} 27. g4 {[%clk 0:01:34]}  Nb6 {[%clk 0:01:37]} 28. Nc5 {[%clk 0:01:26]}  Nc4+ {[%clk 0:01:36]} 29. Ke2 {[%clk 0:01:14]}  Rb2 {[%clk 0:01:35]} 30. Kd3 {[%clk 0:01:00]}  Nb6 {[%clk 0:01:17]} 31. Ne6+ {[%clk 0:00:21]}  Kb7 {[%clk 0:01:16]} 32. Rb1 {[%clk 0:00:04]}  Nxa4 {[%clk 0:01:09]} 33. Rxb2+ {[%clk 0:00:03]}  Nxb2+ {[%clk 0:01:09]} 34. Kc3 {[%clk 0:00:01]}  Na4+ {[%clk 0:01:09]} 0-1

[Event "January 9 Early 2024"]
[Site "https://www.chess.com"]
[Date "2024.01.11"]
[Round "8"]
[White "Trost, Edvin"]
[Black "Ghosh, Chanchal Kumer"]
[Result "1-0"]
[Board "59"]
[TimeControl "180+1"]
[WhiteFideId "1729519"]
[BlackFideId "10201858"]
[WhiteElo "2626"]
[BlackElo "2094"]
[WhiteTeam "SWE"]
[BlackTeam "BAN"]
[WhiteClock "0:01:43"]
[BlackClock "0:00:01"]

1. d4 {[%clk 0:03:00]}  d5 {[%clk 0:02:59]} 2. c4 {[%clk 0:02:55]}  e6 {[%clk 0:03:00]} 3. Nf3 {[%clk 0:02:55]}  Nf6 {[%clk 0:03:00]} 4. Nc3 {[%clk 0:02:53]}  b6 {[%clk 0:02:59]} 5. cxd5 {[%clk 0:02:51]}  exd5 {[%clk 0:02:59]} 6. Bg5 {[%clk 0:02:51]}  Bb7 {[%clk 0:02:57]} 7. e3 {[%clk 0:02:51]}  Be7 {[%clk 0:02:57]} 8. Bd3 {[%clk 0:02:51]}  O-O {[%clk 0:02:57]} 9. Qc2 {[%clk 0:02:50]}  h6 {[%clk 0:02:58]} 10. Bxf6 {[%clk 0:02:49]}  Bxf6 {[%clk 0:02:58]} 11. O-O-O {[%clk 0:02:50]}  Nd7 {[%clk 0:02:46]} 12. g4 {[%clk 0:02:46]}  Qe7 {[%clk 0:02:39]} 13. h4 {[%clk 0:02:45]}  g6 {[%clk 0:02:31]} 14. g5 {[%clk 0:02:41]}  Bg7 {[%clk 0:02:31]} 15. h5 {[%clk 0:02:34]}  hxg5 {[%clk 0:02:17]} 16. Rdg1 {[%clk 0:02:32]}  f6 {[%clk 0:02:10]} 17. hxg6 {[%clk 0:02:23]}  Rfc8 {[%clk 0:01:59]} 18. Rh5 {[%clk 0:02:22]}  c5 {[%clk 0:00:54]} 19. Rgh1 {[%clk 0:02:22]}  Nf8 {[%clk 0:00:50]} 20. Qd1 {[%clk 0:02:16]}  a6 {[%clk 0:00:44]} 21. Qg1 {[%clk 0:02:15]}  cxd4 {[%clk 0:00:39]} 22. Nxd4 {[%clk 0:02:13]}  Rxc3+ {[%clk 0:00:35]} 23. bxc3 {[%clk 0:02:12]}  Qa3+ {[%clk 0:00:33]} 24. Kb1 {[%clk 0:01:57]}  Qxc3 {[%clk 0:00:31]} 25. Bc2 {[%clk 0:01:58]}  Qb4+ {[%clk 0:00:25]} 26. Bb3 {[%clk 0:01:58]}  Nxg6 {[%clk 0:00:22]} 27. Qg2 {[%clk 0:01:53]}  Rc8 {[%clk 0:00:15]} 28. Rh7 {[%clk 0:01:54]}  Rc7 {[%clk 0:00:09]} 29. Qh3 {[%clk 0:01:53]}  Qe7 {[%clk 0:00:07]} 30. Rxg7+ {[%clk 0:01:47]}  Qxg7 {[%clk 0:00:07]} 31. Ne6 {[%clk 0:01:46]}  Qd7 {[%clk 0:00:03]} 32. Nxc7 {[%clk 0:01:42]}  Qxc7 {[%clk 0:00:03]} 33. Qe6+ {[%clk 0:01:42]}  Qf7 {[%clk 0:00:02]} 34. Qxf7+ {[%clk 0:01:40]}  Kxf7 {[%clk 0:00:03]} 35. Rc1 {[%clk 0:01:41]}  Ne7 {[%clk 0:00:01]} 36. Rc7 {[%clk 0:01:42]}  Ba8 {[%clk 0:00:01]} 37. Ra7 {[%clk 0:01:42]}  Bc6 {[%clk 0:00:02]} 38. Rxa6 {[%clk 0:01:43]}  Ke6 {[%clk 0:00:02]} 39. Rxb6 {[%clk 0:01:43]}  Kd6 {[%clk 0:00:03]} 40. Rb4 {[%clk 0:01:44]}  Nf5 {[%clk 0:00:03]} 41. Bc2 {[%clk 0:01:42]}  Nh4 {[%clk 0:00:03]} 42. Kc1 {[%clk 0:01:42]}  f5 {[%clk 0:00:04]} 43. a4 {[%clk 0:01:42]}  Kc5 {[%clk 0:00:03]} 44. Rb8 {[%clk 0:01:42]}  Nf3 {[%clk 0:00:01]} 45. a5 {[%clk 0:01:42]}  Ne5 {[%clk 0:00:01]} 46. a6 {[%clk 0:01:43]}  Nc4 {[%clk 0:00:01]} 47. a7 {[%clk 0:01:43]} 1-0